bitfinex/quotes_SOLUSD_20241117
["timestamp","ask_amount","ask_price","bid_price","bid_amount"]
[1731809408230,37.23406478,213.97,213.94,0.06032]
[1731809408540,37.23406478,213.97,213.96,0.06032]
[1731809408744,0.1,213.96,213.87,0.06032]
[1731809409035,37.23406478,213.91,213.9,0.06032]
[1731809409235,37.23406478,213.91,213.89,0.06032]
[1731809409448,37.23406478,213.9,213.89,0.06032]
[1731809410125,11.68,214.05,213.91,0.06032]
[1731809410126,37.23406478,213.92,213.91,0.06032]
[1731809410324,37.23406478,213.96,213.95,0.06032]
[1731809410521,37.23406478,213.96,213.93,0.06032]
[1731809410718,37.23406478,213.94,213.89,0.06032]
[1731809410943,0.1,213.89,213.81,0.06032]
[1731809411111,37.23406478,213.83,213.82,0.06032]
[1731809411517,37.23406478,213.83,213.79,0.06032]
[1731809411726,37.23406478,213.82,213.81,0.06032]
[1731809412213,37.23406478,213.82,213.67,0.06038]
[1731809412214,37.23406478,213.82,213.79,0.06032]
[1731809412418,37.23406478,213.8,213.79,0.06032]
[1731809412646,37.23406478,213.82,213.81,0.06032]
[1731809412844,37.23406478,213.82,213.76,0.06032]
[1731809413050,37.23406478,213.77,213.72,0.06032]
[1731809413241,37.23406478,213.73,213.72,0.06032]
[1731809413544,70.0,213.92,213.82,0.06032]
[1731809413545,4.6746,213.92,213.82,0.06032]
[1731809413837,0.1,213.86,213.78,0.06032]
[1731809414038,0.1,213.86,213.71,37.23406478]
[1731809414039,4.6746,213.92,213.85,0.06032]
[1731809414242,4.6746,213.92,213.74,16.43528]
[1731809414243,4.6746,213.92,213.83,0.06032]
[1731809414423,37.23406478,213.86,213.85,0.06032]
[1731809414622,37.23406478,213.88,213.85,0.06032]
[1731809414841,37.23406478,213.92,213.91,0.06032]
[1731809415051,37.23406478,213.98,213.97,0.06032]
[1731809415264,37.23406478,213.98,213.94,0.06032]
[1731809415424,37.23406478,214.02,213.99,0.06032]
[1731809415626,37.23406478,214.0,213.97,0.06032]
[1731809415948,37.23406478,213.98,213.94,0.06032]
[1731809416247,4.6715,214.06,213.98,0.06032]
[1731809416427,4.6715,214.06,214.02,0.06032]
[1731809416739,0.1,214.17,214.06,0.06032]
[1731809416944,4.6689,214.18,214.11,0.06032]
[1731809417158,4.6689,214.18,214.13,0.06032]
[1731809417518,0.1,214.09,214.03,0.06032]
[1731809417723,0.1,214.0,213.95,0.06032]
[1731809417924,37.23406478,213.95,213.9,0.06032]
[1731809418141,37.23406478,213.91,213.9,0.06032]
[1731809418526,37.23406478,213.91,213.85,0.06032]
[1731809418527,0.1,213.87,213.85,0.06032]
[1731809418729,37.33406478,213.86,213.81,0.06032]
[1731809419029,37.23406478,213.82,213.78,0.06032]
[1731809419257,37.23406478,213.8,213.78,0.06032]
[1731809419551,37.23406478,213.82,213.81,0.06032]
[1731809419761,37.23406478,213.82,213.73,48.93056478]
[1731809419762,37.23406478,213.82,213.77,0.06032]
[1731809420056,0.1,213.75,213.69,0.06032]
[1731809420232,37.23406478,213.7,213.66,0.06032]
[1731809420557,37.23406478,213.67,213.65,0.06032]
[1731809420852,0.1,213.73,213.65,0.06032]
[1731809421052,37.23406478,213.66,213.65,0.06032]
[1731809421227,37.23406478,213.7,213.69,0.06032]
[1731809421440,37.23406478,213.7,213.67,0.06032]
[1731809421825,37.23406478,213.68,213.65,0.06032]
[1731809422027,37.23406478,213.66,213.59,0.06032]
[1731809422227,4.6792,213.71,213.66,0.06032]
[1731809422445,4.7787,213.74,213.66,0.06032]
[1731809422630,4.7787,213.74,213.64,0.06032]
[1731809422836,0.1,213.72,213.64,0.06032]
[1731809423032,4.7787,213.74,213.66,0.06032]
[1731809423242,4.6763,213.84,213.76,0.06032]
[1731809423457,37.23406478,213.81,213.8,0.06032]
[1731809423755,37.23406478,213.81,213.74,0.06032]
[1731809423928,37.23406478,213.75,213.74,0.06032]
[1731809424132,37.23406478,213.75,213.6,37.23406478]
[1731809424133,37.23406478,213.75,213.72,0.06032]
[1731809424355,4.6767,213.83,213.74,0.06032]
[1731809424356,37.23406478,213.77,213.74,0.06032]
[1731809424647,37.23406478,213.79,213.76,0.06032]
[1731809424827,37.23406478,213.77,213.74,0.06032]
[1731809425033,37.23406478,213.75,213.74,0.06032]
[1731809425330,37.23406478,213.75,213.64,0.06032]
[1731809425659,37.23406478,213.68,213.67,0.06032]
[1731809425835,0.1,213.7,213.63,0.06032]
[1731809426156,37.23406478,213.64,213.63,0.06032]
[1731809426355,70.0,213.8,213.57,0.5237805]
[1731809426356,37.23406478,213.68,213.67,0.06032]
[1731809426567,37.23406478,213.74,213.73,0.06032]
[1731809426860,37.23406478,213.74,213.61,0.1]
[1731809426861,37.23406478,213.74,213.68,0.06032]
[1731809427044,37.23406478,213.69,213.65,0.06032]
[1731809427240,37.23406478,213.66,213.65,0.06032]
[1731809427542,37.23406478,213.7,213.69,0.06032]
[1731809428048,37.23406478,213.7,213.65,0.06032]
[1731809428242,37.23406478,213.66,213.65,0.06032]
[1731809428446,37.23406478,213.68,213.67,0.06032]
[1731809428852,37.23406478,213.68,213.63,0.06032]
[1731809429141,37.23406478,213.64,213.63,0.06032]
[1731809429352,37.23406478,213.64,213.6,0.06032]
[1731809429538,37.23406478,213.61,213.58,0.06032]
[1731809429739,37.23406478,213.59,213.57,0.5237805]
[1731809430363,41.91606478,213.59,213.57,0.5237805]
[1731809430576,0.1,213.58,213.57,0.5237805]
[1731809430743,0.1,213.56,213.49,0.06032]
[1731809431064,37.33406478,213.5,213.44,0.06032]
[1731809431229,37.23406478,213.5,213.42,0.06032]
[1731809431436,37.23406478,213.5,213.38,11.7158]
[1731809431437,37.23406478,213.43,213.4,0.06032]
[1731809431736,37.23406478,213.41,213.37,0.06032]
[1731809431936,0.1,213.42,213.37,0.06032]
[1731809431937,37.23406478,213.39,213.37,0.06032]
[1731809432136,23.01879548,213.58,213.36,0.5237805]
[1731809432137,37.23406478,213.43,213.39,0.06032]
[1731809432442,37.23406478,213.45,213.44,0.06032]
[1731809432751,37.23406478,213.45,213.42,0.06032]
[1731809433135,37.23406478,213.43,213.4,0.06032]
[1731809433532,37.23406478,213.41,213.36,0.5237805]
[1731809433767,37.23406478,213.37,213.36,0.5237805]
[1731809434247,41.92066478,213.37,213.36,0.5237805]
[1731809434439,37.23406478,213.37,213.36,0.5237805]
[1731809434642,37.23406478,213.48,213.36,0.5237805]
[1731809434643,4.6843,213.48,213.42,0.06032]
[1731809434865,37.23406478,213.44,213.4,0.06032]
[1731809435267,37.23406478,213.48,213.44,0.06032]
[1731809435457,37.23406478,213.54,213.51,0.06032]
[1731809435639,37.23406478,213.54,213.53,0.06032]
[1731809435969,37.23406478,213.54,213.42,0.06038]
[1731809435970,0.1,213.52,213.42,0.06032]
[1731809436137,37.23406478,213.47,213.46,0.06032]
[1731809436343,41.91876478,213.47,213.38,0.06032]
[1731809436534,37.23406478,213.4,213.36,0.5841005]
[1731809436739,0.1,213.46,213.36,0.5237805]
[1731809436740,37.23406478,213.38,213.36,0.5237805]
[1731809436962,37.23406478,213.38,213.37,0.06032]
[1731809437136,37.23406478,213.4,213.39,0.06032]
[1731809437347,37.23406478,213.42,213.41,0.06032]
[1731809437546,37.23406478,213.42,213.36,5.2104805]
[1731809437547,37.33406478,213.42,213.36,0.5237805]
[1731809437753,37.23406478,213.37,213.36,0.5237805]
[1731809437973,37.23406478,213.39,213.38,0.06032]
[1731809438140,0.1,213.44,213.36,0.5237805]
[1731809438344,37.23406478,213.37,213.36,0.5237805]
[1731809438539,74.56812956,213.37,213.36,0.5237805]
[1731809439249,0.1,213.3,213.21,0.06032]
[1731809439574,0.1,213.22,213.16,0.06032]
[1731809439747,37.23406478,213.18,213.13,0.06032]
[1731809439948,37.23406478,213.16,213.15,0.06032]
[1731809440449,37.23406478,213.16,213.13,0.06032]
[1731809440871,37.23406478,213.18,213.15,0.06032]
[1731809441041,37.23406478,213.2,213.17,0.06032]
[1731809441465,37.23406478,213.18,213.17,0.06032]
[1731809441660,37.23406478,213.22,213.19,0.06032]
[1731809441868,37.23406478,213.26,213.25,0.06032]
[1731809442043,37.23406478,213.28,213.23,0.06032]
[1731809442244,0.1,213.34,213.23,0.06032]
[1731809442245,37.23406478,213.26,213.23,0.06032]
[1731809442460,37.23406478,213.24,213.23,0.06032]
[1731809443263,0.1,213.36,213.25,0.06032]
[1731809443453,37.23406478,213.26,213.25,0.06032]
[1731809443658,37.23406478,213.26,213.23,0.06032]
[1731809443864,37.23406478,213.27,213.22,0.06032]
[1731809444077,0.1,213.35,213.22,0.06032]
[1731809444259,37.23406478,213.25,213.24,0.06032]
[1731809444573,37.23406478,213.27,213.24,0.06032]
[1731809444775,37.23406478,213.27,213.26,0.06032]
[1731809444943,37.23406478,213.29,213.26,0.06032]
[1731809445146,11.7152,213.4,213.17,16.4187]
[1731809445147,37.23406478,213.33,213.3,0.06032]
[1731809445360,41.2116,213.46,213.34,0.06032]
[1731809445361,37.23406478,213.37,213.34,0.06032]
[1731809445575,37.23406478,213.44,213.43,0.06032]
[1731809445752,37.23406478,213.46,213.43,0.06032]
[1731809445950,37.23406478,213.44,213.42,0.06032]
[1731809446142,37.23406478,213.46,213.45,0.06032]
[1731809446347,37.23406478,213.48,213.47,0.06032]
[1731809446675,6.0759,213.57,213.39,16.5018]
[1731809446676,37.23406478,213.5,213.49,0.06032]
[1731809447349,37.23406478,213.5,213.45,0.06032]
[1731809447550,37.23406478,213.46,213.4,0.12549]
[1731809447753,37.23406478,213.42,213.41,0.06032]
[1731809448073,37.23406478,213.42,213.37,0.06032]
[1731809448262,37.23406478,213.39,213.37,0.06032]
[1731809449456,0.1,213.38,213.35,0.06032]
[1731809449656,74.46812956,213.36,213.28,0.06032]
[1731809449872,37.23406478,213.29,213.28,0.06032]
[1731809450457,37.23406478,213.29,213.21,16.4154]
[1731809450458,4.6886,213.28,213.21,0.06032]
[1731809450757,37.23406478,213.22,213.21,0.06032]
[1731809451073,37.23406478,213.22,213.19,0.06032]
[1731809451577,37.23406478,213.22,213.21,0.06032]
[1731809451771,37.23406478,213.22,213.19,0.06032]
[1731809451981,37.23406478,213.2,213.19,0.06032]
[1731809452182,4.6886,213.28,213.14,16.9442805]
[1731809452183,37.23406478,213.24,213.21,0.06032]
[1731809452358,37.23406478,213.26,213.23,0.06032]
[1731809452553,4.6882,213.3,213.14,17.0046605]
[1731809452554,37.23406478,213.28,213.27,0.06032]
[1731809453959,37.23406478,213.32,213.31,0.06032]
[1731809454153,37.23406478,213.34,213.31,0.06032]
[1731809454352,37.23406478,213.32,213.31,0.06032]
[1731809455152,37.23406478,213.32,213.29,0.06032]
[1731809455454,37.23406478,213.32,213.31,0.06032]
[1731809455660,37.23406478,213.32,213.29,0.06032]
[1731809455984,37.23406478,213.3,213.29,0.06032]
[1731809456283,0.1,213.28,213.23,0.06032]
[1731809456575,4.69,213.22,213.18,0.06032]
[1731809456778,37.23406478,213.19,213.18,0.06032]
[1731809457684,0.1,213.18,213.14,0.5841005]
[1731809457972,37.23406478,213.15,213.14,0.5841005]
[1731809458175,37.23406478,213.15,213.14,0.5237805]
[1731809458580,42.02556478,213.15,213.14,0.5237805]
[1731809458790,41.92556478,213.15,213.14,0.5237805]
[1731809459002,79.25962956,213.15,213.14,0.5237805]
[1731809459173,42.02556478,213.15,213.14,0.5237805]
[1731809459869,41.92556478,213.15,213.14,0.5237805]
[1731809460068,37.23406478,213.15,213.14,0.5841005]
[1731809460587,37.23406478,213.23,213.22,0.06032]
[1731809460975,37.23406478,213.23,213.15,4.6915]
[1731809460976,37.23406478,213.23,213.2,0.06032]
[1731809461177,37.33406478,213.21,213.14,0.5237805]
[1731809461394,37.23406478,213.16,213.14,0.5237805]
[1731809461608,37.23406478,213.18,213.14,5.2757005]
[1731809461892,37.23406478,213.2,213.19,0.06032]
[1731809462302,37.23406478,213.2,213.17,0.06032]
[1731809462599,37.23406478,213.2,213.19,0.06032]
[1731809462781,37.23406478,213.28,213.25,0.06032]
[1731809462981,37.23406478,213.32,213.31,0.06032]
[1731809463295,37.23406478,213.32,213.28,0.06032]
[1731809463481,37.23406478,213.31,213.3,0.06032]
[1731809464574,37.23406478,213.35,213.34,0.06032]
[1731809464777,37.23406478,213.39,213.38,0.06032]
[1731809465073,37.23406478,213.39,213.22,16.4148]
[1731809465074,37.23406478,213.45,213.44,0.06032]
[1731809465288,37.23406478,213.47,213.46,0.06032]
[1731809465473,0.1,213.52,213.41,0.06032]
[1731809465674,4.6832,213.53,213.34,0.06032]
[1731809465675,0.1,213.42,213.34,0.06032]
[1731809465874,4.6832,213.53,213.28,0.06032]
[1731809465875,0.1,213.33,213.28,0.06032]
[1731809466106,0.1,213.33,213.25,0.06032]
[1731809466273,23.61971881,213.45,213.33,0.06032]
[1731809466274,0.1,213.45,213.33,0.06032]
[1731809466473,70.0,213.5,213.22,16.4148]
[1731809466474,0.1,213.49,213.38,0.06032]
[1731809466670,109.807,213.53,213.44,0.06032]
[1731809466671,4.6842,213.48,213.44,0.06032]
[1731809466875,7.1417686,213.55,213.48,0.06032]
[1731809467177,7.1417686,213.55,213.52,0.06032]
[1731809467384,7.1417686,213.55,213.49,0.06032]
[1731809467595,37.23406478,213.5,213.49,0.06032]
[1731809467794,37.23406478,213.54,213.53,0.06032]
[1731809468885,37.23406478,213.56,213.55,0.06032]
[1731809469374,37.23406478,213.6,213.57,0.06032]
[1731809469574,37.23406478,213.67,213.63,0.06032]
[1731809469879,37.23406478,213.67,213.66,0.06032]
[1731809470080,0.1,213.64,213.54,0.06032]
[1731809470302,0.1,213.6,213.48,0.06032]
[1731809470518,37.23406478,213.49,213.48,0.06032]
[1731809470810,42.01816478,213.49,213.38,0.06032]
[1731809471008,37.23406478,213.39,213.38,0.06032]
[1731809471185,37.23406478,213.39,213.25,53.76436478]
[1731809471186,37.23406478,213.39,213.32,0.06032]
[1731809471388,37.23406478,213.33,213.28,0.06032]
[1731809471690,37.23406478,213.29,213.25,0.06032]
[1731809472015,0.1,213.38,213.32,0.06032]
[1731809472309,0.1,213.29,213.24,0.06032]
[1731809472475,37.23406478,213.24,213.19,0.06032]
[1731809472681,37.23406478,213.2,213.19,0.06032]
[1731809472897,41.92466478,213.2,213.15,0.06032]
[1731809473093,37.23406478,213.16,213.15,0.06032]
[1731809473298,37.23406478,213.18,213.17,0.06032]
[1731809473504,37.23406478,213.18,213.16,0.06032]
[1731809474101,0.1,213.17,213.14,0.5237805]
[1731809474284,37.23406478,213.15,213.14,0.5237805]
[1731809474902,37.23406478,213.15,213.14,0.5841005]
[1731809475232,37.23406478,213.15,213.14,0.5237805]
[1731809475385,0.1,213.22,213.16,0.06032]
[1731809475386,37.23406478,213.19,213.16,0.06032]
[1731809475590,30.1,213.33,213.14,5.2153805]
[1731809475591,37.23406478,213.21,213.2,0.06032]
[1731809475779,37.23406478,213.21,213.17,0.06032]
[1731809475993,0.1,213.21,213.14,0.5237805]
[1731809476292,37.23406478,213.24,213.14,0.5237805]
[1731809476483,37.23406478,213.15,213.14,0.5841005]
[1731809477016,37.23406478,213.19,213.18,0.06032]
[1731809477491,37.23406478,213.23,213.2,0.06032]
[1731809477808,37.23406478,213.28,213.25,0.06032]
[1731809478113,37.23406478,213.36,213.35,0.06032]
[1731809478413,37.23406478,213.36,213.25,0.1]
[1731809478414,37.23406478,213.38,213.37,0.06032]
[1731809478791,37.23406478,213.38,213.29,0.06032]
[1731809478987,16.3956,213.47,213.33,0.06032]
[1731809478988,0.1,213.41,213.33,0.06032]
[1731809479204,18.754266,213.42,213.33,0.06032]
[1731809479585,0.1,213.34,213.26,0.06032]
[1731809479803,70.0,213.4,213.19,11.7263]
[1731809479804,0.1,213.31,213.22,0.06032]
[1731809480012,7.13975374,213.45,213.16,0.06032]
[1731809480013,37.23406478,213.23,213.16,0.06032]
[1731809480309,37.23406478,213.24,213.14,0.5237805]
[1731809480310,37.23406478,213.17,213.14,0.5841005]
[1731809480503,0.1,213.21,213.14,0.5841005]
[1731809480707,0.1,213.19,213.14,0.5237805]
[1731809480886,4.6904,213.2,213.14,0.5237805]
[1731809480887,4.6904,213.2,213.14,0.5841005]
[1731809481092,37.23406478,213.15,213.14,0.5237805]
[1731809481290,37.23406478,213.15,212.99,11.7375]
[1731809481291,0.1,213.13,213.04,0.06032]
[1731809481531,4.6904,213.2,213.06,0.06032]
[1731809481532,37.23406478,213.07,213.06,0.06032]
[1731809481836,37.23406478,213.07,213.0,4.6948]
[1731809481837,37.23406478,213.07,213.03,0.06032]
[1731809482025,37.23406478,213.04,213.03,0.06032]
[1731809482212,37.23406478,213.04,213.01,0.06032]
[1731809482412,37.23406478,213.02,213.01,0.06032]
[1731809482609,37.23406478,213.06,213.05,0.06032]
[1731809482835,37.23406478,213.06,213.04,0.06032]
[1731809483146,37.23406478,213.08,213.07,0.06032]
[1731809483337,37.23406478,213.08,213.0,0.06032]
[1731809483521,37.23406478,213.05,213.02,0.06032]
[1731809483722,37.23406478,213.07,213.04,0.06032]
[1731809483928,37.23406478,213.05,213.03,0.06032]
[1731809484235,37.23406478,213.07,213.06,0.06032]
[1731809484435,37.23406478,213.07,213.05,0.06032]
[1731809484917,37.23406478,213.09,213.08,0.06032]
[1731809485115,37.23406478,213.11,213.1,0.06032]
[1731809485438,37.23406478,213.21,213.14,0.06032]
[1731809485620,37.23406478,213.23,213.21,0.06032]
[1731809485813,0.1,213.31,213.2,0.06032]
[1731809486015,37.23406478,213.22,213.14,0.06032]
[1731809486214,37.23406478,213.15,213.14,0.06032]
[1731809486532,70.0,213.3,213.14,0.06032]
[1731809486533,37.23406478,213.23,213.22,0.06032]
[1731809486710,37.23406478,213.25,213.24,0.06032]
[1731809486915,37.23406478,213.25,213.19,0.06032]
[1731809487134,37.23406478,213.24,213.23,0.06032]
[1731809487414,37.23406478,213.26,213.25,0.06032]
[1731809488134,37.23406478,213.28,213.27,0.06032]
[1731809488346,0.1,213.39,213.31,0.06032]
[1731809488635,0.1,213.39,213.19,16.5172]
[1731809488636,37.23406478,213.32,213.29,0.06032]
[1731809488835,37.23406478,213.3,213.29,0.06032]
[1731809489020,37.23406478,213.32,213.31,0.06032]
[1731809489225,37.23406478,213.34,213.33,0.06032]
[1731809490447,6.89365652,213.63,213.43,0.06038]
[1731809490744,37.23406478,213.6,213.55,0.06032]
[1731809490916,37.23406478,213.6,213.57,0.06032]
[1731809491115,4.6805,213.65,213.57,0.06032]
[1731809491116,7.12770474,213.58,213.57,0.06032]
[1731809492118,7.12770474,213.58,213.57,0.1207]
[1731809492315,7.12770474,213.58,213.57,4.803]
[1731809492518,7.12770474,213.58,213.57,4.74262]
[1731809492816,7.12770474,213.58,213.57,0.06032]
[1731809493017,37.23406478,213.66,213.62,0.06032]
[1731809493327,37.23406478,213.66,213.63,0.06032]
[1731809494245,37.23406478,213.66,213.61,0.06032]
[1731809494455,0.5237805,213.67,213.65,0.06032]
[1731809494948,0.5237805,213.67,213.38,43.15672361]
[1731809494949,37.23406478,213.66,213.61,0.06032]
[1731809495246,37.23406478,213.66,213.49,0.1]
[1731809495247,0.1,213.62,213.53,0.06032]
[1731809495443,37.23406478,213.54,213.49,0.06032]
[1731809495624,37.23406478,213.56,213.53,0.06032]
[1731809496342,37.23406478,213.54,213.51,0.06032]
[1731809496528,0.12549,213.49,213.47,0.06032]
[1731809496731,37.23406478,213.52,213.49,0.06032]
[1731809497625,37.23406478,213.56,213.55,0.06032]
[1731809497825,37.23406478,213.58,213.55,0.06032]
[1731809498030,37.23406478,213.58,213.57,0.06032]
[1731809498233,37.23406478,213.58,213.49,0.06032]
[1731809498234,4.93328,213.57,213.49,0.06032]
[1731809498529,0.25098,213.49,213.42,0.06032]
[1731809498732,37.23406478,213.46,213.44,0.06032]
[1731809498938,0.25098,213.45,213.41,0.06032]
[1731809499116,37.23406478,213.41,213.35,0.06032]
[1731809499314,37.23406478,213.43,213.4,0.06032]
[1731809499522,0.12549,213.4,213.39,0.06032]
[1731809499737,37.23406478,213.41,213.39,0.06032]
[1731809500126,37.23406478,213.45,213.42,0.06032]
[1731809500337,37.23406478,213.51,213.48,0.06032]
[1731809500535,37.33406478,213.49,213.39,0.06032]
[1731809500716,37.23406478,213.45,213.42,0.06032]
[1731809500921,39.8957,213.59,213.46,0.06032]
[1731809501149,37.23406478,213.48,213.44,0.06032]
[1731809501446,37.23406478,213.46,213.44,0.06032]
[1731809501637,37.23406478,213.46,213.41,0.06032]
[1731809501946,39.7957,213.59,213.43,0.06032]
[1731809501947,37.23406478,213.44,213.43,0.06032]
[1731809502448,0.25098,213.43,213.39,0.06032]
[1731809502738,11.708,213.53,213.33,11.7185]
[1731809502739,37.23406478,213.42,213.41,0.06032]
[1731809502947,37.48504478,213.42,213.39,0.06032]
[1731809503130,0.25098,213.42,213.41,0.06032]
[1731809503520,70.1,213.52,213.43,0.06032]
[1731809503521,4.6836,213.51,213.43,0.06032]
[1731809503719,37.48504478,213.44,213.43,0.06032]
[1731809504019,24.127864,213.43,213.39,0.06032]
[1731809504232,37.23406478,213.42,213.39,0.06032]
[1731809504422,37.23406478,213.42,213.41,0.06032]
[1731809504621,37.23406478,213.42,213.39,0.06032]
[1731809504826,0.25098,213.43,213.37,0.06032]
[1731809504827,37.23406478,213.4,213.37,0.06032]
[1731809505046,37.23406478,213.38,213.37,0.06032]
[1731809505344,37.23406478,213.38,213.27,11.7221]
[1731809505345,37.23406478,213.4,213.39,0.06032]
[1731809505923,23.902374,213.39,213.37,0.06032]
[1731809506122,37.23406478,213.38,213.37,0.06032]
[1731809506539,37.23406478,213.38,213.25,0.06038]
[1731809506540,23.902374,213.37,213.34,0.06032]
[1731809506741,37.35955478,213.35,213.34,0.06032]
[1731809506933,37.48504478,213.35,213.34,0.06032]
[1731809507142,61.26192878,213.35,213.32,0.06032]
[1731809507348,37.23406478,213.33,213.32,0.06032]
[1731809508361,37.23406478,213.41,213.4,0.06032]
[1731809508528,0.1,213.39,213.33,0.06032]
[1731809508732,81.7117,213.47,213.31,0.06032]
[1731809508733,37.23406478,213.33,213.31,0.06032]
[1731809509435,37.33406478,213.33,213.31,0.06032]
[1731809509642,37.23406478,213.33,213.31,0.06032]
[1731809510351,37.23406478,213.35,213.34,0.06032]
[1731809510653,37.23406478,213.37,213.36,0.06032]
[1731809511035,37.23406478,213.37,213.3,4.6882]
[1731809511036,37.23406478,213.39,213.38,0.06032]
[1731809511639,37.23406478,213.39,213.36,0.06032]
[1731809511842,37.23406478,213.37,213.36,0.06032]
[1731809512047,37.23406478,213.37,213.3,11.7205]
[1731809512048,74.46812956,213.37,213.3,0.06032]
[1731809512233,37.23406478,213.31,213.3,0.06032]
[1731809512440,37.23406478,213.33,213.32,0.06032]
[1731809513531,0.12549,213.45,213.39,0.06032]
[1731809513731,37.23406478,213.4,213.39,0.06032]
[1731809513955,37.23406478,213.4,213.24,16.4133]
[1731809513956,4.6848,213.46,213.41,0.06032]
[1731809514141,4.6848,213.46,213.38,0.06032]
[1731809514460,0.1,213.41,213.31,0.06032]
[1731809514756,0.1,213.41,213.33,0.06032]
[1731809515070,0.1,213.37,213.31,0.06032]
[1731809515234,24.027864,213.39,213.3,0.06032]
[1731809515433,0.1,213.36,213.3,0.06032]
[1731809515635,0.1,213.28,213.21,0.06032]
[1731809515840,37.23406478,213.22,213.21,0.06032]
[1731809516230,37.23406478,213.24,213.23,0.06032]
[1731809516763,41.92356478,213.24,213.23,0.06032]
[1731809516944,37.23406478,213.24,213.23,0.06032]
[1731809517662,37.23406478,213.28,213.25,0.06032]
[1731809517860,37.23406478,213.26,213.25,0.06032]
[1731809518169,37.23406478,213.26,213.23,0.06032]
[1731809518338,37.23406478,213.24,213.21,0.06032]
[1731809518542,37.23406478,213.22,213.19,0.06032]
[1731809518740,0.25098,213.17,213.14,0.06032]
[1731809518938,4.6908,213.18,213.16,0.06032]
[1731809519142,28.717564,213.23,213.16,0.06032]
[1731809519364,37.23406478,213.17,213.14,0.06032]
[1731809519672,37.23406478,213.17,213.06,4.6934]
[1731809519673,40.441964,213.23,213.16,0.06032]
[1731809520251,0.1,213.21,213.15,0.06032]
[1731809520565,40.441964,213.23,213.07,11.7332]
[1731809520566,0.1,213.22,213.14,0.06032]
[1731809520771,0.1,213.22,213.02,0.1]
[1731809520772,0.1,213.14,213.08,0.06032]
[1731809520941,37.23406478,213.09,213.06,0.06032]
[1731809521145,37.23406478,213.12,212.92,6.41918]
[1731809521146,24.027864,213.06,213.02,0.06032]
[1731809521358,37.23406478,213.03,213.02,0.06032]
[1731809521666,24.027864,213.02,212.98,0.06032]
[1731809521860,0.25098,212.98,212.96,0.06032]
[1731809522166,0.25098,212.98,212.94,0.06032]
[1731809522167,0.1,212.95,212.94,0.06032]
[1731809522343,37.35955478,212.94,212.91,0.06032]
[1731809522551,37.48504478,212.94,212.91,0.06032]
[1731809522854,42.05565478,212.94,212.89,0.06032]
[1731809523172,66.05802878,212.94,212.86,0.06032]
[1731809523465,66.05802878,212.94,212.88,0.06032]
[1731809524174,66.05802878,212.94,212.86,0.06032]
[1731809524343,66.05802878,212.94,212.88,0.06032]
[1731809524552,65.95802878,212.94,212.9,0.06032]
[1731809524757,0.1,212.86,212.85,0.06032]
[1731809524950,0.1,212.86,212.82,0.06032]
[1731809525289,37.23406478,212.83,212.8,0.06032]
[1731809525486,0.1,212.86,212.82,0.06032]
[1731809525650,23.876884,212.87,212.82,0.06032]
[1731809525856,37.23406478,212.85,212.84,0.06032]
[1731809526059,37.23406478,212.87,212.86,0.06032]
[1731809526264,23.776884,212.86,212.82,0.06032]
[1731809526575,24.002374,212.93,212.88,0.06032]
[1731809526783,0.1,212.9,212.86,0.06032]
[1731809527073,66.05962878,212.87,212.86,0.06032]
[1731809527272,65.95962878,212.87,212.86,0.06032]
[1731809527776,66.05962878,212.87,212.86,0.06032]
[1731809528278,41.93176478,212.87,212.86,0.06032]
[1731809528575,37.23406478,212.91,212.83,36.79438478]
[1731809528748,37.23406478,212.95,212.87,37.23406478]
[1731809529165,37.23406478,212.95,212.75,39.9526]
[1731809529166,37.23406478,212.88,212.75,16.4509]
[1731809529372,37.23406478,212.86,212.77,37.23406478]
[1731809529555,37.23406478,212.82,212.73,37.23406478]
[1731809529764,37.23406478,212.8,212.72,0.5237805]
[1731809529947,37.23406478,212.78,212.72,0.5237805]
[1731809530339,37.23406478,212.74,212.72,0.5237805]
[1731809531282,37.23406478,212.76,212.72,0.5237805]
[1731809532075,37.23406478,212.85,212.74,37.23406478]
[1731809532258,37.23406478,212.87,212.79,37.23406478]